{"text_format":"1","workbook":"xlsx","n_sheets":1,"sheets":["2023"],"not_rendered":{"charts":0,"images":0,"macros":1,"external_links":0,"defined_names":1,"comments":1,"pivot_tables":0},"unopened":[],"bounds":{"document_bytes":16777216,"sheet_cells":100000,"rows_first":2000,"rows_last":500,"rows_between":2000,"halvings":0,"cell_chars":16384,"cell_head_chars":4096},"cells_cut":0,"cells_raw":0,"read":"whole","date_system":"1900"}

{"sheet":"2023","index":0,"n_rows":39,"n_cols":28,"rows_kept":39,"cut":false,"hidden":false,"merged":[[38,5,38,12],[37,6,37,12],[7,4,7,5],[3,6,3,7],[8,4,8,5],[3,10,3,11],[5,7,5,10],[6,7,6,9]]}
[]
[]
[null,null,null,null,null,null,1,null,null,null,null,null,null,null,null,null,{"$f":"M4-E7","v":2023}]
[null,null,null,"Anmeldung",2556,"Schwadernau BE","Bitte Jahrgang eintragen",null,null,null,"Shooting Masters",null,2023,null,null,{"$f":"RIGHT(E8,LEN(E8)-SEARCH(\"@\",E8,1))","v":{"$error":"#VALUE!"}},null,null,null,null,null,null,null,null,null,null,null,"männlich"]
[null,null,null,null,null,null,"Die unten angegebene Zeit ist die Startzeit zum ersten Wettkampfschuss.",null,null,null,null,null,null,null,null,null,null,null,null,null,null,null,null,null,null,null,null,"weiblich"]
[null,null,null,"Name / Vorname","JG","Kategorie",null,"Kader (Bitte auswählen)",null,null,null,null,"Lizenz"]
[null,null,null,null,null,{"$f":"IF(Q3>20,\"ELITE\",\"JUNIOR/IN\")","v":"ELITE"},null,"kein SSV Kader"]
[null,null,null,"E-Mail Adresse"]
[null,null,null,null,null,null,"50m 20/20/20\n","50m 20/20/20\n",null,null,null,null,null,null,null,null,null,null,null,null,null,"10m(40)","10(60)","50(60)","50(60/40/40)","50(20/20/20)"]
[]
[null,null,null,"Shooting Masters",5,"15 / 16. April 2023",null,null,null,null,null,null,null,null,null,false,false,false,false,false,false,null,null,{"$f":"COUNTIF(R11:R13,TRUE)","v":0},{"$f":"COUNTIF(S11:S13,TRUE)","v":0},{"$f":"COUNTIF(T11:T13,TRUE)","v":0},null,"kein SSV Kader"]
[null,null,null,"Schwadernau","Sa.",{"$f":"IF(P11=TRUE,\"Männer / Frauen (SpS, E2/E1/T4)\",\"\")","v":""},null,null,{"$f":"IF(Q11=TRUE,\"Junioren / Juniorinnen (T4-J/T3/T2/T1)\",\"\")","v":""},null,"WK 1",{"$f":"IF(T11=FALSE,\"\",\"13:15-16:00 T1/T2\")","v":""},null,null,null,false,false,false,false,false,false,{"$f":"COUNTIF(P11:P14,TRUE)","v":0},{"$f":"COUNTIF(Q11:Q14,TRUE)","v":0},null,null,null,null,"Kader SpS (M, E1/E2, T4) "]
[null,null,null,null,null,null,{"$f":"IF(P11=FALSE,\"\",\"09:15-10:45\")","v":""},{"$f":"IF(Q11=FALSE,\"\",\"11:25-12:55\")","v":""},null,null,null,null,null,null,null,false,false,false,null,null,null,null,null,null,null,null,null,"NWF (T4-J, T3/T2/T1)"]
[null,null,null,null,"So.",{"$f":"IF(P13=TRUE,\"Junioren / Juniorinnen (T4-J/T3/T2/T1)\",\"\")","v":""},null,null,{"$f":"IF(Q13=TRUE,\"Männer / Frauen (SpS, E2/E1/T4)\",\"\")","v":""},null,"WK 2",{"$f":"IF(T12=FALSE,\"\",\"So. 09:15-12:00\")","v":""},null,null,null,false,false,false]
[null,null,null,null,null,null,{"$f":"IF(P13=FALSE,\"\",\"09:15-10:45\")","v":""},{"$f":"IF(Q13=FALSE,\"\",\"11:20-12:50\")","v":""},null,null,{"$f":"IF(S12=FALSE,\"\",\"(gemischt T3)\")","v":""},{"$f":"IF(T12=FALSE,\"\",\"(gemischt T3)\")","v":""}]
[]
[null,null,null,"Shooting Masters",6,"29. / 30. April 2023",null,null,null,null,null,null,null,null,null,false,false,false,false,false,false,null,null,{"$f":"COUNTIF(R17:R19,TRUE)","v":0},{"$f":"COUNTIF(S17:S19,TRUE)","v":0},{"$f":"COUNTIF(T17:T19,TRUE)","v":0}]
[null,null,null,"Schwadernau","Sa.",{"$f":"IF(P17=TRUE,\"Männer / Frauen (SpS, E2/E1/T4)\",\"\")","v":""},null,null,{"$f":"IF(Q17=TRUE,\"Junioren / Juniorinnen (T4-J/T3/T2/T1)\",\"\")","v":""},null,"WK 1",{"$f":"IF(T17=FALSE,\"\",\"09:15-12:00 WK2\")","v":""},null,null,null,null,false,false,false,false,false,{"$f":"COUNTIF(P17:P20,TRUE)","v":0},{"$f":"COUNTIF(Q17:Q20,TRUE)","v":0}]
[null,null,null,null,null,null,{"$f":"IF(P17=FALSE,\"\",\"09:15-10:45\")","v":""},{"$f":"IF(Q17=FALSE,\"\",\"11:25-12:55\")","v":""},null,null,{"$f":"IF(S17=FALSE,\"\",\"(SpS E2/E1/T4/T4-J)\")","v":""},{"$f":"IF(T17=FALSE,\"\",\"(T3/T2/T1)\")","v":""},null,null,null,false,false,false]
[null,null,null,null,"So.",{"$f":"IF(P19=TRUE,\"Junioren / Juniorinnen (T4-J/T3/T2/T1)\",\"\")","v":""},null,null,{"$f":"IF(Q20=TRUE,\"Männer / Frauen (SpS, E2/E1/T4)\",\"\")","v":""},null,"WK 2",null,null,null,null,null,false,false]
[null,null,null,null,null,null,{"$f":"IF(P19=FALSE,\"\",\"09:15-10:45\")","v":""},{"$f":"IF(Q20=FALSE,\"\",\"11:20-12:50\")","v":""},null,null,{"$f":"IF(S18=FALSE,\"\",\"12:00- 14:45 WK1\")","v":""},{"$f":"IF(T18=FALSE,\"\",\"13:00-15:45 WK2\")","v":""}]
[null,null,null,null,null,null,null,null,null,null,{"$f":"IF(S18=FALSE,\"\",\"(T3/T2/T1)\")","v":""},{"$f":"IF(T18=FALSE,\"\",\"(SpS E2/E1/T4/T4-J)\")","v":""}]
[null,null,null,"Shooting Masters",7,"20. / 21. Mai 2023",null,null,null,null,null,null,null,null,null,false,false,false,false,false,false,null,null,{"$f":"COUNTIF(R23:R25,TRUE)","v":0},{"$f":"COUNTIF(S23:S25,TRUE)","v":0},{"$f":"COUNTIF(T23:T25,TRUE)","v":0}]
[null,null,null,"Schwadernau","Sa.",{"$f":"IF(P23=TRUE,\"Männer / Frauen (SpS, E2/E1/T4)\",\"\")","v":""},null,null,{"$f":"IF(Q23=TRUE,\"Junioren / Juniorinnen (T4-J/T3/T2/T1)\",\"\")","v":""},null,"WK 1",{"$f":"IF(T23=FALSE,\"\",\"Frauen/Jun. 08:15-11:00\")","v":""},null,null,null,false,false,false,false,false,false,{"$f":"COUNTIF(P23:P26,TRUE)","v":0},{"$f":"COUNTIF(Q23:Q26,TRUE)","v":0}]
[null,null,null,null,null,null,{"$f":"IF(P23=FALSE,\"\",\"09:15-10:45\")","v":""},{"$f":"IF(Q23=FALSE,\"\",\"11:25-12:55\")","v":""},null,null,null,null,null,null,null,false,false,false]
[null,null,null,null,"So.",{"$f":"IF(P25=TRUE,\"Junioren / Juniorinnen (T4-J/T3/T2/T1)\",\"\")","v":""},null,null,{"$f":"IF(Q25=TRUE,\"Männer / Frauen (SpS, E2/E1/T4)\",\"\")","v":""},null,"WK 2",{"$f":"IF(T24=FALSE,\"\",\"Frauen/Jun. 13:30-16.15\")","v":""},null,null,null,false,false,false]
[null,null,null,null,null,null,{"$f":"IF(P25=FALSE,\"\",\"09:15-10:45\")","v":""},{"$f":"IF(Q25=FALSE,\"\",\"11:20-12:50\")","v":""}]
[]
[null,null,null,"Shooting Masters",8,"29. / 30. Juli 2023",null,null,null,null,null,null,null,null,null,false,false,false,false,false,false,null,null,{"$f":"COUNTIF(R29:R31,TRUE)","v":0},{"$f":"COUNTIF(S29:S31,TRUE)","v":0},{"$f":"COUNTIF(T29:T31,TRUE)","v":0}]
[null,null,null,"Schwadernau","Sa.",{"$f":"IF(P29=TRUE,\"Männer / Frauen (SpS, E2/E1/T4)\",\"\")","v":""},null,null,{"$f":"IF(Q29=TRUE,\"Junioren / Juniorinnen (T4-J/T3/T2/T1)\",\"\")","v":""},null,"WK 1",{"$f":"IF(U29=FALSE,\"\",\"09:15-12:00 WK2\")","v":""},null,null,null,null,false,false,false,false,false,{"$f":"COUNTIF(P29:P32,TRUE)","v":0},{"$f":"COUNTIF(Q29:Q32,TRUE)","v":0}]
[null,null,null,null,null,null,{"$f":"IF(P29=FALSE,\"\",\"09:15-10:45\")","v":""},{"$f":"IF(Q29=FALSE,\"\",\"11:20-12:50\")","v":""},null,null,{"$f":"IF(T29=FALSE,\"\",\"(SpS E2/E1/T4/T4-J)\")","v":""},{"$f":"IF(U29=FALSE,\"\",\"(T3/T2/T1)\")","v":""},null,null,null,false,false,false]
[null,null,null,null,"So.",{"$f":"IF(P31=TRUE,\"Junioren / Juniorinnen (T4-J/T3/T2/T1)\",\"\")","v":""},null,null,{"$f":"IF(Q31=TRUE,\"Männer / Frauen (SpS, E2/E1/T4)\",\"\")","v":""},null,"WK 2",null,null,null,null,null,false,false]
[null,null,null,null,null,null,{"$f":"IF(P31=FALSE,\"\",\"09:15-10:45\")","v":""},{"$f":"IF(Q31=FALSE,\"\",\"11:20-12:50\")","v":""},null,null,{"$f":"IF(S30=FALSE,\"\",\"12:00- 14:45 WK1\")","v":""},{"$f":"IF(T30=FALSE,\"\",\"13:00-15:45 WK2\")","v":""}]
[null,null,null,null,null,null,null,null,null,null,{"$f":"IF(S30=FALSE,\"\",\"(T3/T2/T1)\")","v":""},{"$f":"IF(T30=FALSE,\"\",\"(SpS E2/E1/T4/T4-J)\")","v":""}]
[]
[null,null,null,"Meldetermin","Montag 20:00 Uhr vor dem Shooting Masters"]
[]
[null,null,null,null,null,"Bemerkungen / Wünsche"]
[null,null,null,"ssv@armando-amrein.ch"]